[Event "RUS-chT Premier 2021"]
[White "Artemiev,Vladislav"]
[Black "Vitiugov,Nikita"]
[WhiteTeam "Ладья"]
[BlackTeam "Медный всадник"]
[Site "Sochi"]
[Round "7.1"]
[Annotator "RC"]
[Result "1/2-1/2"]
[Date "2021.05.08"]
[WhiteElo "2709"]
[BlackElo "2715"]
[PlyCount "127"]
[TimeControl "60"]

1. c4 {[%emt 0:0:0]} Nf6 {[%emt 0:0:0]} 2. Nf3 {[%emt 0:1:54]} g6 {[%emt 0:0:56]
} 3. b3 {[%emt 0:2:30]} Bg7 {[%emt 0:0:50]} 4. Bb2 {[%emt 0:0:0]} 0-0 {[%emt 0:1:4]} 5. g3 {[%emt 0:0:42]} d6 {[%emt 0:0:35]} 6. Bg2 {[%emt 0:0:23]
} e5 {[%emt 0:0:54]} 7. d3 {[%emt 0:0:39]} Re8 {[%emt 0:5:20]} 8. 0-0 {[%emt 0:1:6]} e4 {[%emt 0:2:45]} 9. dxe4 {[%emt 0:0:40]} Nxe4 {[%emt 0:0:15]
} 10. Bxg7 {[%emt 0:1:9]} Kxg7 {[%emt 0:0:4]} 11. Nfd2 {[%emt 0:1:39]
} Nc5 {[%emt 0:10:28]} 12. Nc3 {[%emt 0:14:28]} Nc6 {[%emt 0:0:0]} 13. a3 {[%emt 0:6:39]} Be6 {[%emt 0:0:51]} 14. b4 {[%emt 0:1:43]} Nd7 {[%emt 0:0:11]
} 15. Rc1 {[%emt 0:7:25]} Rb8 {[%emt 0:6:4]} 16. Nd5 {[%emt 0:0:0]} Nce5 {[%emt 0:2:55]} 17. Qc2 {[%emt 0:6:50]} c6 {[%emt 0:7:31]} 18. Nf4 {[%emt 0:1:33]} Nf6 {[%emt 0:0:54]} 19. Qc3 {[%emt 0:3:17]} Qe7 {[%emt 0:6:19]
} 20. Rfd1 {[%emt 0:7:4]} Rbd8 {[%emt 0:7:15]} 21. b5 {[%emt 0:7:49]
} Bf5 {[%emt 0:5:20]} 22. bxc6 {[%emt 0:4:14]} bxc6 {[%emt 0:0:0]} 23. h3 {[%emt 0:5:38]} g5 {[%emt 0:6:33]} 24. Nd3 {[%emt 0:0:22]} c5 {[%emt 0:3:15]} 25. Nf1 {[%emt 0:2:53]} Qe6 {[%emt 0:6:58]} 26. f4 {[%emt 0:0:0]} gxf4 {[%emt 0:2:27]} 27. Nxf4 {[%emt 0:0:5]} Qe7 {[%emt 0:2:11]} 28. g4 {[%emt 0:0:14]} Bg6 {[%emt 0:0:58]} 29. Ng3 {[%emt 0:0:30]} h6 {[%emt 0:0:51]
} 30. Rf1 {[%emt 0:1:53]} Kg8 {[%emt 0:5:35]} 31. Qd2 {[%emt 0:0:0]} Kh7 {[%emt 0:3:48]} 32. Rf2 {[%emt 0:0:48]} Nfd7 {[%emt 0:2:7]} 33. Nd5 {[%emt 0:2:16]} Qg5 {[%emt 0:1:14]} 34. Qc3 {[%emt 0:0:6]} Re6 {[%emt 0:2:41]
} 35. Rcf1 {[%emt 0:1:16]} Rb8 {[%emt 0:2:3]} 36. Be4 {[%emt 0:1:6]
} Kg8 {[%emt 0:2:57]} 37. Nf4 {[%emt 0:1:27]} Ree8 {[%emt 0:0:0]} 38. Bxg6 {[%emt 0:0:29]} fxg6 {[%emt 0:0:8]} 39. Ne4 {[%emt 0:0:9]} Qh4 {[%emt 0:0:27]} 40. Nxd6 {[%emt 0:0:0]} Rf8 {[%emt 0:0:0]} 41. Qe3 {[%emt 0:13:32]
} Qe7 {[%emt 0:11:17]} 42. Ne4 {[%emt 0:4:18]} Nxc4 {[%emt 0:0:0]} 43. Nxg6 {[%emt 0:0:45]} Nxe3 {[%emt 0:3:56]} 44. Nxe7+ {[%emt 0:0:11]} Kg7 {[%emt 0:0:3]} 45. Rxf8 {[%emt 0:3:9]} Rxf8 {[%emt 0:2:17]} 46. Rxf8 {[%emt 0:3:33]
} Kxf8 {[%emt 0:0:8]} 47. Nf5 {[%emt 0:1:6]} Nc4 {[%emt 0:0:0]} 48. a4 {[%emt 0:0:28]} a5 {[%emt 0:0:20]} 49. Nxh6 {[%emt 0:3:54]} Nb2 {[%emt 0:1:13]} 50. Nf5 {[%emt 0:1:20]} Nxa4 {[%emt 0:0:4]} 51. Kf2 {[%emt 0:0:50]
} Nab6 {[%emt 0:0:24]} 52. Ke3 {[%emt 0:1:8]} Nd5+ {[%emt 0:0:0]} 53. Kd2 {[%emt 0:0:14]} a4 {[%emt 0:1:59]} 54. Nc3 {[%emt 0:0:34]} a3 {[%emt 0:2:11]} 55. Kc2 {[%emt 0:1:17]} Nf4 {[%emt 0:0:11]} 56. h4 {[%emt 0:0:8]
} Ne5 {[%emt 0:0:34]} 57. g5 {[%emt 0:0:36]} Kf7 {[%emt 0:0:0]} 58. e3 {[%emt 0:1:12]} Ne6 {[%emt 0:0:37]} 59. Ne4 {[%emt 0:2:17]} Kg6 60. Nfg3 {[%emt 0:0:16]} Ng7 {[%emt 0:1:26]} 61. Kb3 {[%emt 0:0:46]} Nf3 {[%emt 0:0:10]
} 62. Kxa3 {[%emt 0:0:20]} Nxh4 {[%emt 0:0:4]} 63. Nxc5 {[%emt 0:0:10]
} Kxg5 {[%emt 0:0:7]} 64. Kb4 {[%emt 0:0:7]} 1/2-1/2

[Event "RUS-chT Premier 2021"]
[White "Faizrakhmanov,Ramil"]
[Black "Ponkratov,Pavel"]
[WhiteTeam "Ладья"]
[BlackTeam "Медный всадник"]
[Site "Sochi"]
[Round "7.5"]
[Annotator "ChessBase"]
[Result "0-1"]
[Date "2021.05.08"]
[WhiteElo "2477"]
[BlackElo "2619"]
[PlyCount "142"]
[TimeControl "60"]

1. d4 {[%emt 0:0:0]} Nf6 {[%emt 0:0:0]} 2. c4 {[%emt 0:0:0]} e6 {[%emt 0:0:0]} 3. Nf3 {[%emt 0:0:8]} h6 {[%emt 0:0:6]} 4. Nc3 {[%emt 0:1:41]} Bb4 {[%emt 0:0:37]} 5. Qb3 {[%emt 0:3:43]} c5 {[%emt 0:3:31]} 6. dxc5 {[%emt 0:0:0]} Nc6 {[%emt 0:1:32]} 7. a3 {[%emt 0:2:43]} Bxc5 {[%emt 0:0:12]} 8. e3 {[%emt 0:1:17]} b6 {[%emt 0:8:15]} 9. Be2 {[%emt 0:1:21]} Bb7 {[%emt 0:0:0]} 10. 0-0 {[%emt 0:0:58]} Qb8 {[%emt 0:5:25]} 11. Qc2 {[%emt 0:5:16]} Ng4 {[%emt 0:14:45]} 12. g3 {[%emt 0:10:27]} h5 {[%emt 0:2:58]} 13. b4 {[%emt 0:0:0]} Be7 {[%emt 0:8:53]} 14. e4 {[%emt 0:8:16]} h4 {[%emt 0:24:29]} 15. Bf4 {[%emt 0:3:35]} e5 {[%emt 0:7:24]} 16. Bd2 {[%emt 0:2:48]} Qd6 {[%emt 0:0:0]} 17. h3 {[%emt 0:5:21]} Nf6 {[%emt 0:10:20]} 18. g4 {[%emt 0:4:50]} Rc8 {[%emt 0:0:16]} 19. Nb5 {[%emt 0:2:36]} Qb8 {[%emt 0:0:6]} 20. Qd3 {[%emt 0:3:57]
} Nd8 {[%emt 0:7:18]} 21. Nc3 {[%emt 0:12:58]} Ba6 {[%emt 0:0:0]} 22. b5 {[%emt 0:1:30]} Bb7 {[%emt 0:0:3]} 23. g5 {[%emt 0:1:39]} Nh5 {[%emt 0:1:1]
} 24. Nxh4 {[%emt 0:3:7]} Ne6 {[%emt 0:1:20]} 25. Bxh5 {[%emt 0:1:25]
} Rxh5 {[%emt 0:0:4]} 26. Nf5 {[%emt 0:0:10]} Bxg5 {[%emt 0:0:0]} 27. Rad1 {[%emt 0:7:41]} Kf8 {[%emt 0:0:48]} 28. Ng3 {[%emt 0:4:46]} Rh8 {[%emt 0:0:5]} 29. Bxg5 {[%emt 0:0:40]} Nxg5 {[%emt 0:0:29]} 30. Qxd7 {[%emt 0:3:41]
} g6 {[%emt 0:1:4]} 31. Rd6 {[%emt 0:0:10]} Nxh3+ {[%emt 0:0:0]} 32. Kg2 {[%emt 0:0:30]} Nf4+ {[%emt 0:0:4]} 33. Kg1 {[%emt 0:0:51]} Nh3+ {[%emt 0:0:6]} 34. Kg2 {[%emt 0:0:5]} Nf4+ {[%emt 0:0:4]} 35. Kg1 {[%emt 0:0:8]
} Rc7 {[%emt 0:1:52]} 36. Qg4 {[%emt 0:0:41]} Nh3+ {[%emt 0:0:0]} 37. Kg2 {[%emt 0:0:30]} Nf4+ {[%emt 0:0:30]} 38. Kg1 {[%emt 0:0:30]} Qc8 {[%emt 0:0:49]} 39. Qxc8+ {[%emt 0:0:26]} Rxc8 {[%emt 0:0:13]} 40. Rd7 {[%emt 0:0:0]
} Rxc4 {[%emt 0:0:0]} 41. Rxb7 {[%emt 0:4:41]} Rxc3 {[%emt 0:0:0]} 42. Rxa7 {[%emt 0:0:37]} Kg7 {[%emt 0:2:23]} 43. a4 {[%emt 0:3:38]} Rc2 {[%emt 0:2:7]} 44. Rb7 {[%emt 0:2:32]} Ra8 {[%emt 0:1:25]} 45. Rxb6 {[%emt 0:1:57]
} Rxa4 {[%emt 0:0:5]} 46. Rc6 {[%emt 0:1:23]} Rb2 {[%emt 0:0:0]} 47. Rc5 {[%emt 0:0:29]} Raa2 {[%emt 0:2:25]} 48. Nh1 {[%emt 0:0:26]} Kf6 {[%emt 0:1:34]} 49. Rc6+ {[%emt 0:1:48]} Kg5 {[%emt 0:0:6]} 50. Ra6 {[%emt 0:1:51]
} Rxa6 {[%emt 0:0:48]} 51. bxa6 {[%emt 0:0:5]} Ra2 {[%emt 0:0:0]} 52. Rb1 {[%emt 0:4:17]} Rxa6 {[%emt 0:0:18]} 53. Rb5 {[%emt 0:0:27]} f6 {[%emt 0:1:10]} 54. Rb3 {[%emt 0:0:33]} Ra1+ {[%emt 0:5:55]} 55. Kh2 {[%emt 0:0:6]
} Ne2 {[%emt 0:1:43]} 56. Ng3 {[%emt 0:2:44]} Ra2 {[%emt 0:0:0]} 57. Nf1 {[%emt 0:1:6]} Nf4 {[%emt 0:3:39]} 58. Rf3 {[%emt 0:1:12]} Kg4 {[%emt 0:0:41]} 59. Rg3+ {[%emt 0:0:13]} Kh4 {[%emt 0:0:4]} 60. Rf3 {[%emt 0:0:12]
} g5 {[%emt 0:0:52]} 61. Ne3 {[%emt 0:4:21]} g4 {[%emt 0:0:9]
} 62. Nf5+ {[%emt 0:0:6]} Kg5 {[%emt 0:0:23]} 63. Rb3 {[%emt 0:0:14]} Rxf2+ {[%emt 0:0:7]} 64. Kh1 {[%emt 0:0:11]} Ra2 {[%emt 0:1:7]} 65. Rb8 {[%emt 0:2:7]
} Nd3 {[%emt 0:0:10]} 66. Ng3 {[%emt 0:1:9]} Kf4 {[%emt 0:0:0]} 67. Nh5+ {[%emt 0:0:24]} Kf3 {[%emt 0:0:10]} 68. Rb1 {[%emt 0:1:36]} Nf2+ {[%emt 0:0:20]} 69. Kg1 {[%emt 0:0:7]} Nxe4 {[%emt 0:1:51]} 70. Rf1+ {[%emt 0:3:40]
} Rf2 {[%emt 0:0:17]} 71. Ra1 {[%emt 0:0:6]} Rg2+ {[%emt 0:0:0]} 0-1

[Event "RUS-chT Premier 2021"]
[White "Goganov,Aleksey"]
[Black "Gaifullin,Artur"]
[WhiteTeam "Медный всадник"]
[BlackTeam "Ладья"]
[Site "Sochi"]
[Round "7.6"]
[Annotator "ChessBase"]
[Result "1/2-1/2"]
[Date "2021.05.08"]
[WhiteElo "2575"]
[BlackElo "2450"]
[PlyCount "74"]
[TimeControl "60"]

1. e4 {[%emt 0:0:0]} e5 {[%emt 0:0:0]} 2. Nf3 {[%emt 0:0:0]} Nc6 {[%emt 0:0:0]
} 3. Bb5 {[%emt 0:0:0]} g6 {[%emt 0:0:0]} 4. c3 {[%emt 0:0:0]} a6 {[%emt 0:0:2]} 5. Ba4 {[%emt 0:5:49]} Bg7 {[%emt 0:0:10]} 6. 0-0 {[%emt 0:0:14]
} Nge7 {[%emt 0:0:12]} 7. d4 {[%emt 0:0:4]} 0-0 {[%emt 0:0:0]} 8. d5 {[%emt 0:10:1]} Na7 {[%emt 0:0:5]} 9. c4 {[%emt 0:0:57]} d6 {[%emt 0:1:46]
} 10. Nc3 {[%emt 0:0:21]} b5 {[%emt 0:2:54]} 11. cxb5 {[%emt 0:0:0]} axb5 {[%emt 0:1:14]} 12. Nxb5 {[%emt 0:1:28]} Nxb5 {[%emt 0:1:57]} 13. Bxb5 {[%emt 0:0:8]} f5 {[%emt 0:0:3]} 14. a4 {[%emt 0:9:20]} h6 {[%emt 0:6:59]
} 15. Ra3 {[%emt 0:1:19]} fxe4 {[%emt 0:14:15]} 16. Nd2 {[%emt 0:2:15]
} c6 {[%emt 0:4:50]} 17. dxc6 {[%emt 0:6:51]} d5 {[%emt 0:0:0]} 18. Rc3 {[%emt 0:9:3]} Qc7 {[%emt 0:8:49]} 19. Rc5 {[%emt 0:6:34]} Be6 {[%emt 0:8:15]} 20. b4 {[%emt 0:0:31]} Kh7 {[%emt 0:1:28]} 21. Nb1 {[%emt 0:0:0]} e3 {[%emt 0:7:46]} 22. Bxe3 {[%emt 0:2:44]} d4 {[%emt 0:0:42]} 23. Bc1 {[%emt 0:2:6]} e4 {[%emt 0:5:45]} 24. Nd2 {[%emt 0:1:41]} Bf5 {[%emt 0:0:0]} 25. Re1 {[%emt 0:3:10]} e3 {[%emt 0:2:43]} 26. fxe3 {[%emt 0:2:4]} dxe3 {[%emt 0:0:3]} 27. Nf3 {[%emt 0:1:36]} Rad8 {[%emt 0:0:33]} 28. Qe2 {[%emt 0:1:44]
} Nd5 {[%emt 0:5:53]} 29. Qc4 {[%emt 0:5:3]} Nf4 {[%emt 0:0:0]} 30. Bxe3 {[%emt 0:2:55]} Nd3 {[%emt 0:0:19]} 31. Rxf5 {[%emt 0:3:36]} Rxf5 {[%emt 0:0:59]} 32. Qxd3 {[%emt 0:5:38]} Rxd3 {[%emt 0:0:5]} 33. Bxd3 {[%emt 0:0:5]} Rxf3 {[%emt 0:4:59]} 34. gxf3 {[%emt 0:0:4]} Qxc6 {[%emt 0:0:0]} 35. Be4 {[%emt 0:1:27]} Qxa4 {[%emt 0:0:13]} 36. Kh1 {[%emt 0:1:43]} Qxb4 {[%emt 0:1:9]} 37. Rg1 {[%emt 0:0:3]} Qc3 {[%emt 0:1:56]} 1/2-1/2

[Event "RUS-chT Premier 2021"]
[White "Dreev,Aleksey"]
[Black "Chigaev,Maksim"]
[WhiteTeam "КПРФ"]
[BlackTeam "Wildberries Молодёжка"]
[Site "Sochi"]
[Round "7.8"]
[Annotator "ChessBase"]
[Result "1/2-1/2"]
[Date "2021.05.08"]
[WhiteElo "2647"]
[BlackElo "2631"]
[PlyCount "23"]
[TimeControl "60"]

1. d4 {[%emt 0:0:0]} Nf6 {[%emt 0:0:0]} 2. Nf3 {[%emt 0:0:0]} g6 {[%emt 0:0:0]
} 3. g3 {[%emt 0:0:0]} Bg7 {[%emt 0:0:0]} 4. Bg2 {[%emt 0:0:0]} c5 {[%emt 0:0:0]} 5. c4 {[%emt 0:0:39]} d5 {[%emt 0:0:7]} 6. cxd5 {[%emt 0:5:16]
} 0-0 {[%emt 0:0:12]} 7. 0-0 {[%emt 0:3:18]} cxd4 {[%emt 0:0:0]} 8. Nxd4 {[%emt 0:0:17]} Nxd5 {[%emt 0:0:9]} 9. Nc3 {[%emt 0:11:50]} Nb6 {[%emt 0:0:14]} 10. Nb3 {[%emt 0:2:3]} Nc6 {[%emt 0:1:58]} 11. Bf4 {[%emt 0:3:8]
} Qxd1 {[%emt 0:9:3]} 12. Raxd1 {[%emt 0:7:53]} 1/2-1/2

[Event "RUS-chT Premier 2021"]
[White "Paravyan,David"]
[Black "Alekseev,Evgeny"]
[WhiteTeam "Wildberries Молодёжка"]
[BlackTeam "КПРФ"]
[Site "Sochi"]
[Round "7.9"]
[Annotator "ChessBase"]
[Result "1/2-1/2"]
[Date "2021.05.08"]
[WhiteElo "2647"]
[BlackElo "2619"]
[PlyCount "57"]
[TimeControl "60"]

1. d4 {[%emt 0:0:0]} Nf6 {[%emt 0:0:0]} 2. c4 {[%emt 0:0:0]} e6 {[%emt 0:0:0]} 3. Nc3 {[%emt 0:0:0]} Bb4 {[%emt 0:2:47]} 4. Qc2 {[%emt 0:0:0]} 0-0 {[%emt 0:1:53]} 5. Nf3 {[%emt 0:0:0]} c5 {[%emt 0:4:4]} 6. dxc5 {[%emt 0:0:5]
} Na6 {[%emt 0:1:20]} 7. g3 {[%emt 0:0:6]} Nxc5 {[%emt 0:0:0]} 8. Bg2 {[%emt 0:0:5]} b6 {[%emt 0:1:37]} 9. 0-0 {[%emt 0:0:5]} Bb7 {[%emt 0:7:27]
} 10. Nb5 {[%emt 0:0:11]} Be4 {[%emt 0:0:24]} 11. Qd1 {[%emt 0:0:0]} Nb7 {[%emt 0:0:23]} 12. a3 {[%emt 0:17:44]} Be7 {[%emt 0:1:21]} 13. Bf4 {[%emt 0:0:16]} a6 {[%emt 0:2:49]} 14. Nc3 {[%emt 0:1:16]} Bc6 {[%emt 0:0:0]} 15. b4 {[%emt 0:9:15]} Rc8 {[%emt 0:4:31]} 16. Re1 {[%emt 0:16:35]} a5 {[%emt 0:23:8]} 17. Qb3 {[%emt 0:2:25]} Nd6 {[%emt 0:6:0]} 18. Nd2 {[%emt 0:28:34]
} Bxg2 {[%emt 0:11:51]} 19. Kxg2 {[%emt 0:0:9]} Qc7 {[%emt 0:0:0]} 20. f3 {[%emt 0:5:42]} Nh5 {[%emt 0:4:54]} 21. Be5 {[%emt 0:0:48]} Qc6 {[%emt 0:3:0]} 22. b5 {[%emt 0:8:52]} Qc5 {[%emt 0:0:57]} 23. Bxd6 {[%emt 0:0:4]
} Qxd6 {[%emt 0:0:38]} 24. Nde4 {[%emt 0:0:28]} Qc7 {[%emt 0:0:0]} 25. Na4 {[%emt 0:0:5]} f5 {[%emt 0:1:50]} 26. Nf2 {[%emt 0:1:2]} Nf6 {[%emt 0:1:56]} 27. Rac1 {[%emt 0:1:49]} Qb7 {[%emt 0:3:43]} 28. Qe3 {[%emt 0:5:59]
} Rb8 {[%emt 0:0:56]} 29. Rc3 {[%emt 0:1:7]} 1/2-1/2

[Event "RUS-chT Premier 2021"]
[White "Zvjaginsev,Vadim"]
[Black "Riazantsev,Alexander"]
[WhiteTeam "КПРФ"]
[BlackTeam "Wildberries Молодёжка"]
[Site "Sochi"]
[Round "7.10"]
[Annotator "ChessBase"]
[Result "1/2-1/2"]
[Date "2021.05.08"]
[WhiteElo "2614"]
[BlackElo "2631"]
[PlyCount "63"]
[TimeControl "60"]

1. e4 {[%emt 0:0:0]} c5 {[%emt 0:0:0]} 2. Be2 {[%emt 0:3:16]} Nc6 {[%emt 0:2:50]
} 3. d3 {[%emt 0:0:45]} g6 {[%emt 0:6:33]} 4. f4 {[%emt 0:0:0]} Bg7 {[%emt 0:0:26]} 5. Nf3 {[%emt 0:0:12]} d6 {[%emt 0:4:56]} 6. 0-0 {[%emt 0:0:28]
} Nf6 {[%emt 0:0:3]} 7. Qe1 {[%emt 0:0:53]} e6 {[%emt 0:9:58]
} 8. Qh4 {[%emt 0:5:57]} Nd7 {[%emt 0:8:34]} 9. Qxd8+ {[%emt 0:8:11]} Kxd8 {[%emt 0:0:10]
} 10. c3 {[%emt 0:3:12]} f5 {[%emt 0:8:21]} 11. Re1 {[%emt 0:0:0]} Kc7 {[%emt 0:9:23]} 12. Bf1 {[%emt 0:10:50]} Re8 {[%emt 0:6:22]} 13. e5 {[%emt 0:5:5]} d5 {[%emt 0:13:0]} 14. d4 {[%emt 0:3:41]} a6 {[%emt 0:0:0]} 15. dxc5 {[%emt 0:4:29]} Nxc5 {[%emt 0:0:9]} 16. Be3 {[%emt 0:0:37]} Ne4 {[%emt 0:7:27]} 17. c4 {[%emt 0:1:21]} dxc4 {[%emt 0:1:33]} 18. Bxc4 {[%emt 0:0:16]
} b5 {[%emt 0:0:58]} 19. Bd3 {[%emt 0:1:2]} Bb7 {[%emt 0:0:0]} 20. Bxe4 {[%emt 0:2:10]} fxe4 {[%emt 0:0:1]} 21. Ng5 {[%emt 0:0:59]} h6 {[%emt 0:5:2]} 22. Nf7 {[%emt 0:8:21]} g5 {[%emt 0:1:48]} 23. fxg5 {[%emt 0:2:24]
} hxg5 {[%emt 0:0:9]} 24. Nd2 {[%emt 0:3:10]} Nxe5 {[%emt 0:0:0]} 25. Rac1+ {[%emt 0:3:9]} Kd7 {[%emt 0:0:0]} 26. Bd4 {[%emt 0:4:33]
} Nxf7 {[%emt 0:0:38]} 27. Bxg7 {[%emt 0:0:4]} Nd6 {[%emt 0:2:44]} 28. Be5 {[%emt 0:1:49]} Rac8 {[%emt 0:1:11]} 29. Rcd1 {[%emt 0:0:41]} Bd5 {[%emt 0:0:0]} 30. Bxd6 {[%emt 0:0:54]} Kxd6 {[%emt 0:0:0]} 31. Nxe4+ {[%emt 0:0:0]} Ke7 {[%emt 0:1:17]} 32. Nc3 {[%emt 0:5:14]} 1/2-1/2

[Event "RUS-chT Premier 2021"]
[White "Antipov,Mikhail Al."]
[Black "Rublevsky,Sergei"]
[WhiteTeam "Wildberries Молодёжка"]
[BlackTeam "КПРФ"]
[Site "Sochi"]
[Round "7.11"]
[Annotator "ChessBase"]
[Result "1/2-1/2"]
[Date "2021.05.08"]
[WhiteElo "2609"]
[BlackElo "2642"]
[PlyCount "47"]
[TimeControl "60"]

1. e4 {[%emt 0:0:0]} c5 {[%emt 0:0:0]} 2. Nf3 {[%emt 0:0:0]} e6 {[%emt 0:0:0]} 3. d4 {[%emt 0:0:0]} cxd4 {[%emt 0:0:0]} 4. Nxd4 {[%emt 0:0:0]} a6 {[%emt 0:0:0]} 5. c4 {[%emt 0:0:0]} Nf6 {[%emt 0:0:0]} 6. Nc3 {[%emt 0:0:5]
} Bb4 {[%emt 0:0:0]} 7. Qd3 {[%emt 0:1:0]} d5 {[%emt 0:0:39]
} 8. exd5 {[%emt 0:33:2]} exd5 {[%emt 0:0:12]} 9. Qe3+ {[%emt 0:3:40]} Be7 {[%emt 0:3:8]
} 10. Qg3 {[%emt 0:6:34]} Ne4 {[%emt 0:16:15]} 11. Qf3 {[%emt 0:0:0]} Nc6 {[%emt 0:27:46]} 12. cxd5 {[%emt 0:13:19]} Nxc3 {[%emt 0:1:58]} 13. dxc6 {[%emt 0:1:22]} Qxd4 {[%emt 0:1:16]} 14. bxc3 {[%emt 0:0:38]} Qc5 {[%emt 0:10:1]
} 15. Be2 {[%emt 0:4:43]} 0-0 {[%emt 0:2:10]} 16. 0-0 {[%emt 0:0:0]} Qxc6 {[%emt 0:4:26]} 17. Qxc6 {[%emt 0:0:6]} bxc6 {[%emt 0:0:3]} 18. Rb1 {[%emt 0:0:20]} Be6 {[%emt 0:3:19]} 19. a4 {[%emt 0:0:30]} Bf6 {[%emt 0:4:0]
} 20. Be3 {[%emt 0:3:46]} a5 {[%emt 0:1:36]} 21. Rfc1 {[%emt 0:0:0]} Rfb8 {[%emt 0:3:57]} 22. Bf3 {[%emt 0:4:38]} Rxb1 {[%emt 0:3:48]} 23. Rxb1 {[%emt 0:0:5]} Bxc3 {[%emt 0:0:8]} 24. Bxc6 {[%emt 0:3:51]} 1/2-1/2

[Event "RUS-chT Premier 2021"]
[White "Sychev,Klementy"]
[Black "Kryakvin,Dmitry"]
[WhiteTeam "КПРФ"]
[BlackTeam "Wildberries Молодёжка"]
[Site "Sochi"]
[Round "7.12"]
[Annotator "ChessBase"]
[Result "0-1"]
[Date "2021.05.08"]
[WhiteElo "2572"]
[BlackElo "2577"]
[PlyCount "134"]
[TimeControl "60"]

1. e4 {[%emt 0:0:0]} c5 {[%emt 0:0:0]} 2. Nf3 {[%emt 0:0:0]} Nc6 {[%emt 0:0:0]
} 3. d4 {[%emt 0:0:0]} cxd4 {[%emt 0:0:3]} 4. Nxd4 {[%emt 0:0:0]} d6 {[%emt 0:1:4]} 5. Nc3 {[%emt 0:11:31]} e5 {[%emt 0:1:9]} 6. Ndb5 {[%emt 0:5:11]} a6 {[%emt 0:2:49]} 7. Na3 {[%emt 0:0:37]} b5 {[%emt 0:0:9]
} 8. Nd5 {[%emt 0:1:5]} Nge7 {[%emt 0:1:25]} 9. Bd3 {[%emt 0:2:2]} Nxd5 {[%emt 0:5:1]
} 10. exd5 {[%emt 0:0:7]} Ne7 {[%emt 0:1:31]} 11. 0-0 {[%emt 0:9:37]
} g6 {[%emt 0:5:12]} 12. c4 {[%emt 0:0:25]} Bg7 {[%emt 0:0:33]
} 13. cxb5 {[%emt 0:0:7]} 0-0 {[%emt 0:0:29]} 14. Re1 {[%emt 0:1:55]} f5 {[%emt 0:4:43]
} 15. Nc2 {[%emt 0:5:2]} Kh8 {[%emt 0:14:53]} 16. bxa6 {[%emt 0:16:10]
} Nxd5 {[%emt 0:9:59]} 17. b4 {[%emt 0:5:48]} e4 {[%emt 0:0:0]} 18. Bf1 {[%emt 0:8:49]} Nxb4 {[%emt 0:5:35]} 19. Nxb4 {[%emt 0:0:49]} Bxa1 {[%emt 0:0:5]} 20. Bh6 {[%emt 0:14:4]} Bg7 {[%emt 0:3:38]} 21. Bxg7+ {[%emt 0:1:15]
} Kxg7 {[%emt 0:0:3]} 22. Qd5 {[%emt 0:1:42]} Bd7 {[%emt 0:0:0]} 23. Rc1 {[%emt 0:1:19]} Be8 {[%emt 0:13:11]} 24. Qd4+ {[%emt 0:3:38]} Qf6 {[%emt 0:1:11]} 25. Rc7+ {[%emt 0:1:36]} Rf7 {[%emt 0:4:20]} 26. Qb6 {[%emt 0:3:13]
} Rxc7 {[%emt 0:11:8]} 27. Qxc7+ {[%emt 0:0:8]} Bf7 {[%emt 0:0:0]} 28. Qb7 {[%emt 0:4:38]} Re8 {[%emt 0:0:52]} 29. a7 {[%emt 0:1:38]} Qb2 {[%emt 0:0:35]} 30. Qb8 {[%emt 0:0:40]} e3 {[%emt 0:5:19]} 31. fxe3 {[%emt 0:0:7]
} Qa3 {[%emt 0:0:27]} 32. Qb6 {[%emt 0:1:13]} Qc1 {[%emt 0:0:0]} 33. Nc6 {[%emt 0:1:11]} Kh6 {[%emt 0:0:29]} 34. Na5 {[%emt 0:0:51]} Bd5 {[%emt 0:0:48]} 35. h3 {[%emt 0:0:30]} Qxe3+ {[%emt 0:1:50]} 36. Qxe3+ {[%emt 0:0:5]
} Rxe3 {[%emt 0:0:2]} 37. Nc4 {[%emt 0:0:27]} Re7 {[%emt 0:0:0]} 38. Nb6 {[%emt 0:0:5]} Rxa7 {[%emt 0:0:6]} 39. Nxd5 {[%emt 0:0:4]} Rxa2 {[%emt 0:0:3]} 40. Kh2 {[%emt 0:0:0]} Rd2 {[%emt 0:0:0]} 41. Ne3 {[%emt 0:18:2]
} Kg5 {[%emt 0:5:32]} 42. Nc4 {[%emt 0:0:22]} Rd4 {[%emt 0:0:0]} 43. Kg3 {[%emt 0:0:39]} Kf6 {[%emt 0:2:6]} 44. Kf3 {[%emt 0:1:56]} d5 {[%emt 0:1:41]} 45. Nb2 {[%emt 0:0:13]} h5 {[%emt 0:2:41]} 46. Nd3 {[%emt 0:0:0]} h4 {[%emt 0:0:41]} 47. Be2 {[%emt 0:2:28]} g5 {[%emt 0:3:42]} 48. Kf2 {[%emt 0:2:45]} Ra4 {[%emt 0:1:3]} 49. Bf3 {[%emt 0:0:27]} d4 {[%emt 0:0:0]} 50. Be2 {[%emt 0:4:49]} Ra2 {[%emt 0:1:45]} 51. Nb4 {[%emt 0:0:35]} Rb2 {[%emt 0:2:3]} 52. Nd3 {[%emt 0:0:3]} Rd2 {[%emt 0:2:22]} 53. Ke1 {[%emt 0:0:7]
} Ra2 {[%emt 0:0:4]} 54. Kf1 {[%emt 0:2:56]} Ra3 {[%emt 0:0:0]} 55. Ke1 {[%emt 0:1:19]} Ke6 {[%emt 0:7:31]} 56. Kd2 {[%emt 0:0:31]} Ra1 {[%emt 0:0:21]} 57. Bf3 {[%emt 0:0:21]} Ra2+ {[%emt 0:0:12]} 58. Ke1 {[%emt 0:1:7]
} Kd6 {[%emt 0:0:9]} 59. Kf1 {[%emt 0:0:26]} Rc2 {[%emt 0:0:0]} 60. Nb4 {[%emt 0:1:3]} Rc3 {[%emt 0:0:16]} 61. Ke2 {[%emt 0:0:33]} Re3+ {[%emt 0:0:47]} 62. Kd2 {[%emt 0:0:15]} g4 {[%emt 0:1:16]} 63. hxg4 {[%emt 0:0:8]
} h3 {[%emt 0:0:8]} 64. Nd3 {[%emt 0:1:15]} fxg4 {[%emt 0:0:0]} 65. Ba8 {[%emt 0:0:16]} h2 {[%emt 0:0:50]} 66. g3 {[%emt 0:0:8]} Rxg3 {[%emt 0:0:20]} 67. Nf2 {[%emt 0:0:11]} Rg1 {[%emt 0:0:18]} 0-1

[Event "RUS-chT Premier 2021"]
[White "Malakhov,Vladimir"]
[Black "Zakhartsov,Vladimir"]
[WhiteTeam "Шахматная сборная Москвы"]
[BlackTeam "Школа М. Ботвинника"]
[Site "Sochi"]
[Round "7.14"]
[Annotator "ChessBase"]
[Result "1-0"]
[Date "2021.05.08"]
[WhiteElo "2665"]
[BlackElo "2486"]
[PlyCount "117"]
[TimeControl "60"]

1. Nf3 {[%emt 0:0:0]} c5 {[%emt 0:0:0]} 2. c4 {[%emt 0:0:4]} Nf6 {[%emt 0:0:0]
} 3. Nc3 {[%emt 0:0:49]} d5 {[%emt 0:0:2]} 4. cxd5 {[%emt 0:0:0]} Nxd5 {[%emt 0:0:6]} 5. e3 {[%emt 0:1:46]} Nxc3 {[%emt 0:0:14]} 6. dxc3 {[%emt 0:5:49]} Qc7 {[%emt 0:8:23]} 7. Qa4+ {[%emt 0:2:58]} Nd7 {[%emt 0:1:40]
} 8. Qh4 {[%emt 0:6:13]} e6 {[%emt 0:4:4]} 9. Qg3 {[%emt 0:0:0]} Qxg3 {[%emt 0:3:2]} 10. hxg3 {[%emt 0:0:40]} b6 {[%emt 0:5:38]} 11. Bd3 {[%emt 0:26:59]} Bb7 {[%emt 0:2:34]} 12. Ke2 {[%emt 0:0:4]} Bd6 {[%emt 0:2:29]
} 13. e4 {[%emt 0:3:59]} Ke7 {[%emt 0:2:14]} 14. Be3 {[%emt 0:0:0]} h6 {[%emt 0:4:42]} 15. a4 {[%emt 0:4:38]} a6 {[%emt 0:2:14]} 16. g4 {[%emt 0:5:39]} Bc6 {[%emt 0:11:39]} 17. Rhd1 {[%emt 0:7:41]} Rhd8 {[%emt 0:0:0]} 18. Bc2 {[%emt 0:3:17]} Bc7 {[%emt 0:5:50]} 19. g5 {[%emt 0:2:43]} hxg5 {[%emt 0:0:49]} 20. Bxg5+ {[%emt 0:0:4]} f6 {[%emt 0:0:12]} 21. Be3 {[%emt 0:0:2]
} a5 {[%emt 0:5:37]} 22. Bd3 {[%emt 0:10:47]} g5 {[%emt 0:7:34]
} 23. Nd2 {[%emt 0:1:1]} Bf4 {[%emt 0:1:18]} 24. Nc4 {[%emt 0:2:49]} Ne5 {[%emt 0:3:27]
} 25. Nxe5 {[%emt 0:0:17]} fxe5 {[%emt 0:0:20]} 26. f3 {[%emt 0:1:32]
} Bxe3 {[%emt 0:0:48]} 27. Kxe3 {[%emt 0:0:2]} Rh8 {[%emt 0:0:0]} 28. Bb5 {[%emt 0:1:16]} Bxb5 {[%emt 0:0:43]} 29. axb5 {[%emt 0:0:4]
} c4 {[%emt 0:1:25]} 30. Rd2 {[%emt 0:2:19]} Rac8 {[%emt 0:8:48]} 31. Rad1 {[%emt 0:0:6]
} Rc5 {[%emt 0:0:13]} 32. Rd7+ {[%emt 0:0:14]} Kf6 {[%emt 0:0:0]} 33. R1d2 {[%emt 0:1:43]} Rxb5 {[%emt 0:2:28]} 34. Rc7 {[%emt 0:0:11]} Rc5 {[%emt 0:0:9]} 35. Rb7 {[%emt 0:2:5]} Rb5 {[%emt 0:0:1]} 36. Rc7 {[%emt 0:0:23]
} Rc5 {[%emt 0:0:2]} 37. Rdd7 {[%emt 0:1:56]} Rxc7 {[%emt 0:0:0]} 38. Rxc7 {[%emt 0:0:2]} Rh2 {[%emt 0:0:35]} 39. Kf2 {[%emt 0:0:5]} Rh1 {[%emt 0:0:15]} 40. Rb7 {[%emt 0:0:0]} a4 {[%emt 0:0:0]} 41. Rxb6 {[%emt 0:0:42]
} a3 {[%emt 0:3:46]} 42. bxa3 {[%emt 0:0:42]} Rc1 {[%emt 0:0:0]} 43. Rb2 {[%emt 0:6:36]} Rxc3 {[%emt 0:0:12]} 44. Ra2 {[%emt 0:0:3]} Rb3 {[%emt 0:0:51]} 45. Ke2 {[%emt 0:2:48]} Ke7 {[%emt 0:4:37]} 46. a4 {[%emt 0:0:11]
} Rb6 {[%emt 0:2:18]} 47. a5 {[%emt 0:2:44]} Ra6 {[%emt 0:0:0]} 48. Kd2 {[%emt 0:0:35]} Kd6 {[%emt 0:0:1]} 49. Kc3 {[%emt 0:0:6]} Kc5 {[%emt 0:0:4]} 50. Ra4 {[%emt 0:1:8]} Kb5 {[%emt 0:3:12]} 51. Rb4+ {[%emt 0:0:30]
} Kxa5 {[%emt 0:0:10]} 52. Rb8 {[%emt 0:0:12]} g4 {[%emt 0:0:0]} 53. fxg4 {[%emt 0:2:17]} Rd6 {[%emt 0:0:6]} 54. g5 {[%emt 0:1:35]} Rd7 {[%emt 0:3:30]} 55. Rg8 {[%emt 0:2:31]} Kb6 {[%emt 0:8:4]} 56. g6 {[%emt 0:0:0]} Rd3+ {[%emt 0:4:37]} 57. Kxc4 {[%emt 0:0:22]} Rg3 {[%emt 0:0:2]} 58. g7 {[%emt 0:0:7]} Kb7 {[%emt 0:0:5]} 59. Kc5 {[%emt 0:0:7]} 1-0